[Event "1st Capablanca Memorial 2017"]
[Site "Heraklion"]
[Date "2017.04.24"]
[Round "8"]
[White "Tsakiris, Haralambos"]
[Black "Anagnostopoulos, Konstantinos"]
[Result "1-0"]
[ECO "E61"]
[WhiteElo "2250"]
[BlackElo "2201"]
[Annotator "ChessBase"]
[PlyCount "47"]
[EventDate "2017.??.??"]
[EventType "tourn"]
[EventCountry "GRE"]
[SourceTitle "playchess.com"]
[Source "ChessBase"]
[SourceQuality "1"]
[TimeControl "40/5400+30:1800+30"]

1. d4 {[%emt 0:00:00]} Nf6 {[%emt 0:00:07]} 2. c4 {[%emt 0:00:00]} d6 {[%emt 0:00:03]} 3. Nf3 {[%emt 0:05:31]} g6 {[%emt 0:00:06]} 4. Nc3 {[%emt 0:00:08]} Bf5 {[%emt 0:00:53]} 5. g3 {[%emt 0:08:19]} Ne4 {[%emt 0:00:08]} 6. Bd2 {[%emt 0:11:50]} Bg7 {[%emt 0:03:51]} 7. Bg2 {[%emt 0:00:13]} c5 {[%emt 0:07:36]} 8. e3 {[%emt 0:25:55]} Nc6 {[%emt 0:01:33]} 9. O-O {[%emt 0:03:01]} O-O {[%emt 0:09:39]} 10. d5 {[%emt 0:07:52]} Nxc3 {[%emt 0:06:35]} 11. Bxc3 {[%emt 0:00:33]} Bxc3 {[%emt 0:01:46]} 12. bxc3 {[%emt 0:07:19]} Na5 {[%emt 0:00:05]} 13. Qe2 {[%emt 0:00:35]} Qd7 {[%emt 0:07:28]} 14. Nd2 {[%emt 0:01:13]} Qa4 {[%emt 0:07:59]} 15. e4 {[%emt 0:00:04]} Bc8 {[%emt 0:00:05]} 16. f4 {[%emt 0:01:15]} b6 {[%emt 0:01:46]} 17. Rf2 {[%emt 0:05:43]} Ba6 {[%emt 0:06:53]} 18. Bf1 {[%emt 0:00:02]} Qc2 {[%emt 0:00:22]} 19. Qe3 {[%emt 0:01:16]} Qa4 {[%emt 0:01:25]} 20. Qd3 {[%emt 0:01:00]} Rac8 {[%emt 0:02:25]} 21. h4 {[%emt 0:01:18]} b5 {[%emt 0:00:51]} 22. h5 {[%emt 0:01:23]} Nxc4 {[%emt 0:03:48]} 23. Nxc4 {[%emt 0:00:03]} Qxc4 {[%emt 0:03:21]} 24. Qc2 {[%emt 0:00:08]} 1-0

[Event "1st Capablanca Memorial 2017"]
[Site "Heraklion"]
[Date "2017.04.24"]
[Round "8"]
[White "Vanheirzeele, Daniel"]
[Black "Hristodoulou, Panagiotis"]
[Result "0-1"]
[ECO "E04"]
[WhiteElo "2146"]
[BlackElo "2278"]
[Annotator "ChessBase"]
[PlyCount "106"]
[EventDate "2017.??.??"]
[EventType "tourn"]
[EventCountry "GRE"]
[SourceTitle "playchess.com"]
[Source "ChessBase"]
[SourceQuality "1"]
[TimeControl "40/5400+30:1800+30"]

1. d4 {[%emt 0:00:00]} d5 {[%emt 0:00:18]} 2. c4 {[%emt 0:00:10]} e6 {[%emt 0:00:15]} 3. Nf3 {[%emt 0:00:12]} Nf6 {[%emt 0:00:08]} 4. g3 {[%emt 0:00:15]} dxc4 {[%emt 0:00:13]} 5. Bg2 {[%emt 0:00:19]} Bd7 {[%emt 0:00:07]} 6. Ne5 {[%emt 0:04:02]} Bc6 {[%emt 0:00:09]} 7. Nxc6 {[%emt 0:00:18]} Nxc6 {[%emt 0:00:07]} 8. O-O {[%emt 0:00:37]} Qd7 {[%emt 0:00:07]} 9. e3 {[%emt 0:12:06]} Rd8 {[%emt 0:00:09]} 10. Qa4 {[%emt 0:20:59]} Nb4 {[%emt 0:00:24]} 11. Qxd7+ {[%emt 0:00:42]} Rxd7 {[%emt 0:00:10]} 12. Na3 {[%emt 0:00:31]} c5 {[%emt 0:00:10]} 13. dxc5 {[%emt 0:10:53]} Bxc5 {[%emt 0:00:18]} 14. Nxc4 {[%emt 0:00:09]} Nd3 {[%emt 0:00:13]} 15. Bd2 {[%emt 0:04:34]} Nxb2 {[%emt 0:06:08]} 16. Nxb2 {[%emt 0:02:53]} Rxd2 {[%emt 0:00:08]} 17. Na4 {[%emt 0:00:03]} Bd6 {[%emt 0:26:35]} 18. Rfd1 {[%emt 0:07:23]} Rxd1+ {[%emt 0:04:45]} 19. Rxd1 {[%emt 0:00:05]} Ke7 {[%emt 0:00:08]} 20. Bxb7 {[%emt 0:00:07]} Rb8 {[%emt 0:01:35]} 21. Bf3 {[%emt 0:00:40]} g5 {[%emt 0:05:31]} 22. h3 {[%emt 0:05:06]} h5 {[%emt 0:00:22]} 23. Nc3 {[%emt 0:04:26]} g4 {[%emt 0:08:45]} 24. hxg4 {[%emt 0:01:57]} hxg4 {[%emt 0:00:03]} 25. Bg2 {[%emt 0:00:16]} Rb2 {[%emt 0:00:31]} 26. Rb1 {[%emt 0:06:18]} Rxb1+ {[%emt 0:06:21]} 27. Nxb1 {[%emt 0:00:11]} Bb4 {[%emt 0:00:08]} 28. Kf1 {[%emt 0:00:06]} Kd6 {[%emt 0:12:19]} 29. Ke2 {[%emt 0:00:07]} Kc5 {[%emt 0:02:17]} 30. f3 {[%emt 0:06:51]} Kc4 {[%emt 0:03:16]} 31. fxg4 {[%emt 0:01:13]} Nxg4 {[%emt 0:00:20]} 32. Be4 {[%emt 0:00:39]} f5 {[%emt 0:06:41]} 33. Bc2 {[%emt 0:01:02]} Kd5 {[%emt 0:00:14]} 34. Nd2 {[%emt 0:03:00]} Bxd2 {[%emt 0:04:29]} 35. Kxd2 {[%emt 0:00:30]} Ke5 {[%emt 0:00:30]} 36. Ke2 {[%emt 0:00:51]} Nf6 {[%emt 0:01:06]} 37. Kf3 {[%emt 0:00:14]} Nd5 {[%emt 0:00:25]} 38. a3 {[%emt 0:03:21]} a5 {[%emt 0:04:55]} 39. e4 {[%emt 0:01:05]} fxe4+ {[%emt 0:08:14]} 40. Bxe4 {[%emt 0:00:00]} Nc3 {[%emt 0:00:07]} 41. Bc6 {[%emt 0:19:10]} Kd4 {[%emt 0:01:56]} 42. g4 {[%emt 0:00:07]} e5 {[%emt 0:00:11]} 43. g5 {[%emt 0:00:51]} e4+ {[%emt 0:00:07]} 44. Bxe4 {[%emt 0:09:26]} Nxe4 {[%emt 0:00:27]} 45. g6 {[%emt 0:00:03]} Ng5+ {[%emt 0:04:28]} 46. Kg4 {[%emt 0:01:07]} Ne6 {[%emt 0:00:30]} 47. Kf5 {[%emt 0:00:03]} Kd5 {[%emt 0:00:40]} 48. Kf6 {[%emt 0:00:40]} a4 {[%emt 0:00:11]} 49. Kf7 {[%emt 0:00:53]} Ng5+ {[%emt 0:07:52]} 50. Kf6 {[%emt 0:00:34]} Ne4+ {[%emt 0:00:31]} 51. Ke7 {[%emt 0:01:30]} Ng3 {[%emt 0:01:22]} 52. Kf7 {[%emt 0:01:50]} Nh5 {[%emt 0:00:17]} 53. Ke7 {[%emt 0:00:18]} Kc4 {[%emt 0:00:08]} 0-1

[Event "1st Capablanca Memorial 2017"]
[Site "Heraklion"]
[Date "2017.04.24"]
[Round "8"]
[White "Triantos, Konstantinos"]
[Black "Langrock, Hannes"]
[Result "0-1"]
[ECO "C02"]
[WhiteElo "2051"]
[BlackElo "2387"]
[Annotator "ChessBase"]
[PlyCount "114"]
[EventDate "2017.??.??"]
[EventType "tourn"]
[EventCountry "GRE"]
[SourceTitle "playchess.com"]
[Source "ChessBase"]
[SourceQuality "1"]
[TimeControl "40/5400+30:1800+30"]

1. e4 {[%emt 0:00:00]} e6 {[%emt 0:01:23]} 2. d4 {[%emt 0:00:01]} d5 {[%emt 0:00:06]} 3. e5 {[%emt 0:00:05]} c5 {[%emt 0:00:10]} 4. c3 {[%emt 0:00:05]} Qb6 {[%emt 0:00:11]} 5. Nf3 {[%emt 0:00:08]} Nc6 {[%emt 0:00:09]} 6. a3 {[%emt 0:00:08]} Nh6 {[%emt 0:00:18]} 7. b4 {[%emt 0:00:13]} cxd4 {[%emt 0:00:13]} 8. Bxh6 {[%emt 0:00:30]} gxh6 {[%emt 0:00:19]} 9. cxd4 {[%emt 0:00:19]} Bd7 {[%emt 0:00:49]} 10. Ra2 {[%emt 0:00:37]} Rg8 {[%emt 0:01:57]} 11. h3 {[%emt 0:03:12]} Be7 {[%emt 0:03:22]} 12. g3 {[%emt 0:16:32]} f6 {[%emt 0:15:30]} 13. Bd3 {[%emt 0:37:44]} fxe5 {[%emt 0:06:10]} 14. Nxe5 {[%emt 0:03:10]} Nxe5 {[%emt 0:10:28]} 15. dxe5 {[%emt 0:00:07]} O-O-O {[%emt 0:00:20]} 16. Nc3 {[%emt 0:11:19]} Kb8 {[%emt 0:13:14]} 17. Qe2 {[%emt 0:01:44]} Rc8 {[%emt 0:05:59]} 18. Rc2 {[%emt 0:03:28]} a5 {[%emt 0:01:09]} 19. Na2 {[%emt 0:04:28]} Rxc2 {[%emt 0:06:33]} 20. Bxc2 {[%emt 0:02:40]} Qd4 {[%emt 0:14:59]} 21. Kf1 {[%emt 0:04:43]} Qb2 {[%emt 0:05:10]} 22. Bxh7 {[%emt 0:03:21]} Qxe2+ {[%emt 0:01:25]} 23. Kxe2 {[%emt 0:00:04]} Rg5 {[%emt 0:00:52]} 24. Kd2 {[%emt 0:03:03]} Bb5 {[%emt 0:03:41]} 25. Re1 {[%emt 0:01:23]} Bc4 {[%emt 0:00:16]} 26. Bb1 {[%emt 0:02:47]} Bxa2 {[%emt 0:00:36]} 27. Bxa2 {[%emt 0:00:12]} axb4 {[%emt 0:00:04]} 28. Re3 {[%emt 0:00:50]} bxa3 {[%emt 0:00:35]} 29. f4 {[%emt 0:00:06]} Rg8 {[%emt 0:01:12]} 30. g4 {[%emt 0:01:05]} b5 {[%emt 0:06:32]} 31. Kd3 {[%emt 0:00:35]} Kc7 {[%emt 0:01:00]} 32. Re2 {[%emt 0:00:45]} Kc6 {[%emt 0:01:01]} 33. f5 {[%emt 0:00:32]} Bc5 {[%emt 0:00:17]} 34. Kc2 {[%emt 0:00:30]} Bd4 {[%emt 0:00:15]} 35. Kd3 {[%emt 0:00:18]} Bb2 {[%emt 0:00:24]} 36. fxe6 {[%emt 0:00:12]} b4 {[%emt 0:00:50]} 37. Rc2+ {[%emt 0:00:27]} Bc3 {[%emt 0:00:04]} 38. Rf2 {[%emt 0:00:30]} Bxe5 {[%emt 0:00:15]} 39. Rf5 {[%emt 0:00:27]} Kd6 {[%emt 0:00:40]} 40. Rh5 {[%emt 0:00:00]} Rh8 {[%emt 0:01:08]} 41. e7 {[%emt 0:03:43]} Bg7 {[%emt 0:05:30]} 42. Rxd5+ {[%emt 0:09:36]} Kxe7 {[%emt 0:00:30]} 43. Kc4 {[%emt 0:00:30]} Bc3 {[%emt 0:01:00]} 44. Rf5 {[%emt 0:00:21]} Rd8 {[%emt 0:02:17]} 45. Rf2 {[%emt 0:00:30]} Rd4+ {[%emt 0:01:22]} 46. Kb3 {[%emt 0:05:04]} Rd3 {[%emt 0:00:45]} 47. Re2+ {[%emt 0:00:11]} Kd6 {[%emt 0:02:27]} 48. h4 {[%emt 0:04:22]} Rh3 {[%emt 0:02:08]} 49. g5 {[%emt 0:00:51]} h5 {[%emt 0:03:56]} 50. Bb1 {[%emt 0:09:33]} Rxh4 {[%emt 0:01:35]} 51. g6 {[%emt 0:00:57]} Rg4 {[%emt 0:03:15]} 52. Rh2 {[%emt 0:00:42]} h4 {[%emt 0:01:55]} 53. Bf5 {[%emt 0:00:19]} Rg3 {[%emt 0:02:33]} 54. Ka2 {[%emt 0:00:23]} Kc5 {[%emt 0:00:33]} 55. Bc2 {[%emt 0:01:37]} h3 {[%emt 0:02:17]} 56. Kb3 {[%emt 0:00:28]} Be5+ {[%emt 0:01:43]} 57. Ka4 {[%emt 0:00:30]} a2 {[%emt 0:00:30]} 0-1

[Event "1st Capablanca Memorial 2017"]
[Site "Heraklion"]
[Date "2017.04.24"]
[Round "9"]
[White "Hristodoulou, Panagiotis"]
[Black "Tsakiris, Haralambos"]
[Result "1/2-1/2"]
[ECO "C42"]
[WhiteElo "2278"]
[BlackElo "2250"]
[Annotator "NA RC"]
[PlyCount "83"]
[EventDate "2017.??.??"]
[EventType "tourn"]
[EventCountry "GRE"]
[SourceTitle "playchess.com"]
[Source "ChessBase"]
[SourceQuality "1"]
[TimeControl "40/5400+30:1800+30"]

{[%evp 15,83,1,12,10,17,12,32,32,35,13,30,41,48,18,32767,52,62,42,29,44,29,27,32,33,37,42,37,22,31,25,36,21,28,32767,62,32767,66,32767,32767,32767,60,48,56,32767,32767,21,46,25,33,22,24,33,27,43,33,32767,32767,32767,39,30,32767,32,35,0,32767,0,32767,0,32767,11]} 1. e4 {[%emt 0:00:00]} e5 {[%emt 0:01:30]} 2. Nf3 {[%emt 0:00:00]} Nf6 {[%emt 0:00:08]} 3. Nc3 {[%emt 0:03:20]} Bb4 {[%emt 0:00:09]} 4. Nxe5 {[%emt 0:00:31]} O-O {[%emt 0:00:33]} 5. Be2 {[%emt 0:03:44]} Re8 {[%emt 0:00:15]} 6. Nd3 {[%emt 0:00:08]} Bxc3 {[%emt 0:00:06]} 7. dxc3 {[%emt 0:00:12]} Nxe4 {[%emt 0:00:08]} 8. O-O {[%emt 0:03:02]} d6 {[%emt 0:02:41]} 9. Nf4 {[%emt 0:04:03]} Nd7 {[%emt 0:03:55]} 10. c4 {[%emt 0:02:32]} Ndf6 {[%emt 0:26:33]} 11. f3 {[%emt 0:15:05] LiveBook: 6 Games} Nc5 {[%emt 0:00:06]} 12. Rf2 {[%emt 0:00:12]} b6 {[%emt 0:12:17]} 13. b3 {[%emt 0:02:04]} Qe7 {[%emt 0:08:55]} 14. Bb2 {[%emt 0:00:46]} Bb7 {[%emt 0:05:08]} 15. Bf1 {[%emt 0:01:14]} Qe3 {[%emt 0:08:26]} 16. Qd2 {[%emt 0:05:03]} Qxd2 {[%emt 0:04:31]} 17. Rxd2 {[%emt 0:01:24]} Ne6 {[%emt 0:00:30]} 18. Nd5 {[%emt 0:03:47]} Nxd5 $1 {[%emt 0:00:10]} 19. cxd5 {[%emt 0:00:07]} Nf4 {[%emt 0:00:05]} 20. c4 {[%emt 0:00:22]} a5 {[%emt 0:02:53]} 21. a3 {[%emt 0:09:24]} Re3 {[%emt 0:04:32]} 22. g3 {[%emt 0:00:45]} Ng6 {[%emt 0:00:02]} 23. Rd3 {[%emt 0:00:06]} Ree8 {[%emt 0:08:39]} 24. Kf2 {[%emt 0:01:23]} Ne5 {[%emt 0:01:23]} 25. Re3 {[%emt 0:01:00]} f6 {[%emt 0:00:39]} 26. Rae1 {[%emt 0:04:17]} Kf8 {[%emt 0:00:11]} 27. h3 {[%emt 0:00:11]} Nd7 {[%emt 0:01:29]} 28. Bd3 {[%emt 0:03:14]} Rxe3 {[%emt 0:01:31]} 29. Rxe3 {[%emt 0:00:05]} g6 {[%emt 0:00:46]} 30. a4 {[%emt 0:07:20]} Re8 {[%emt 0:00:54]} 31. f4 {[%emt 0:03:34]} Rxe3 {[%emt 0:01:37]} 32. Kxe3 {[%emt 0:00:02]} Kf7 {[%emt 0:00:11]} 33. g4 {[%emt 0:01:39]} Nc5 {[%emt 0:00:05]} 34. Bc2 {[%emt 0:00:04]} Bc8 {[%emt 0:00:20]} 35. Bc3 {[%emt 0:01:01]} Bd7 {[%emt 0:00:08]} 36. Kf3 {[%emt 0:00:17]} Be8 {[%emt 0:02:54]} 37. Bd4 {[%emt 0:00:19]} Bd7 {[%emt 0:01:51]} 38. Kg3 {[%emt 0:01:14]} Bc8 {[%emt 0:01:06]} 39. h4 {[%emt 0:01:09]} Bd7 {[%emt 0:01:05]} 40. h5 {[%emt 0:00:00]} gxh5 {[%emt 0:00:25]} 41. gxh5 {[%emt 0:04:08]} h6 {[%emt 0:03:03]} 42. Bc3 $11 {[%emt 0:08:10]} 1/2-1/2

[Event "1st Capablanca Memorial 2017"]
[Site "Heraklion"]
[Date "2017.04.24"]
[Round "9"]
[White "Anagnostopoulos, Konstantinos"]
[Black "Taylor, Adam C"]
[Result "0-1"]
[ECO "E94"]
[WhiteElo "2201"]
[BlackElo "2231"]
[Annotator "NA"]
[PlyCount "84"]
[EventDate "2017.??.??"]
[EventType "tourn"]
[EventCountry "GRE"]
[SourceTitle "playchess.com"]
[Source "ChessBase"]
[SourceQuality "1"]
[TimeControl "40/5400+30:1800+30"]

{[%evp 18,82,36,5,41,-10,36,-21,0,-58,-52,-56,-22,-105,-43,-42,-49,-197,-183,-216,-236,-167,-218,-238,32767,32767,-481,32767,-743,-741,32767,32767,32767,32767,-456,-444,-442,32767,32767,-480,-340,-367,-361,-364,32767,32767,-377,-425,-460,32767,-485,-432,-433,-483,-524,-518,32767,32767,32767,-657,32767,32767,-619,-616,-718,-653,-726]} 1. d4 {[%emt 0:00:39]} Nf6 {[%emt 0:00:12]} 2. Nf3 {[%emt 0:00:13]} d6 {[%emt 0:00:25]} 3. c4 {[%emt 0:00:19]} g6 {[%emt 0:00:11]} 4. Nc3 {[%emt 0:00:36]} Bg7 {[%emt 0:00:06]} 5. e4 {[%emt 0:00:14]} O-O {[%emt 0:00:11]} 6. Be2 {[%emt 0:00:06]} e5 {[%emt 0:00:25]} 7. O-O {[%emt 0:00:39]} exd4 {[%emt 0:05:23]} 8. Nxd4 {[%emt 0:00:13]} Re8 {[%emt 0:00:27]} 9. f3 {[%emt 0:00:35]} Nc6 {[%emt 0:00:48] LiveBook: 655 Games} 10. Nc2 {[%emt 0:01:53]} a5 {[%emt 0:01:44] E94: King's Indian: Classical: 6 Be2 e5 7 0-0: Various Black 7th moves} (10... Nh5 11. g4 Be5 12. gxh5 Bxh2+ 13. Kxh2 Qh4+ 14. Kg1 {½-½ (14) Dreev,A (2668)-Mamedov,R (2641) Baku 2013}) 11. Ne3 $146 {[%emt 0:04:56]} (11. Be3 Nb4 12. Re1 Bd7 13. Bf1 Nxc2 14. Qxc2 Bc6 15. Rad1 Qb8 16. b3 Nd7 17. Nd5 Nc5 18. Bg5 {0-1 (41) Vodicka,V (2216)-Pisk,P (2380) Czechia 2007}) 11... Nh5 {[%emt 0:07:10]} (11... Nd7 $11) 12. Nc2 {[%emt 0:30:08]} (12. Ned5 $14) 12... Nb4 {[%emt 0:10:25]} 13. Nxb4 {[%emt 0:07:18]} ({White should play} 13. Ne1 $11) 13... axb4 {[%emt 0:00:27]} 14. Nb5 {[%emt 0:01:46]} Bd7 {[%emt 0:06:18]} 15. Qb3 {[%emt 0:19:38]} (15. Qd2 $15) 15... Bxb5 {[%emt 0:17:57]} 16. cxb5 {[%emt 0:00:04]} Bd4+ {[%emt 0:00:07]} 17. Rf2 $2 {[%emt 0:22:35]} ({White has to play} 17. Be3 $1 $15 Nf4 18. Rf2 Bxe3 19. Qxe3 Nxe2+ 20. Qxe2 (20. Rxe2 Re5 $15)) 17... Bxf2+ {[%emt 0:01:52]} 18. Kxf2 {[%emt 0:00:03]} Qh4+ {[%emt 0:00:39]} 19. Kg1 {[%emt 0:00:42]} Qe1+ {[%emt 0:00:25]} 20. Bf1 {[%emt 0:00:02]} d5 {[%emt 0:02:52]} 21. g4 {[%emt 0:03:17]} dxe4 {[%emt 0:03:07]} 22. gxh5 {[%emt 0:00:22]} e3 {[%emt 0:00:16]} (22... gxh5 23. Qe3 exf3 24. Qg5+ (24. Qxf3 Re6 25. Rb1 Ra5 $17 (25... Rd8 $17)) 24... Kh8 25. Qf6+ Kg8 {[#]} 26. Bh6 $1 $14 {[%mdl 512]}) 23. Bxe3 {[%emt 0:00:28]} Qxe3+ {[%emt 0:00:48]} 24. Qxe3 {[%emt 0:00:04]} Rxe3 {[%emt 0:00:05]} 25. Kf2 {[%emt 0:00:06] [#]} Rb3 $1 {[%emt 0:00:16]} 26. Kg3 {[%emt 0:03:38]} Rxb2 {[%emt 0:00:36]} 27. Rc1 {[%emt 0:00:35]} Rc8 {[%emt 0:04:01]} 28. Bc4 {[%emt 0:01:14]} gxh5 {[%emt 0:03:59]} 29. Rd1 {[%emt 0:00:53] [#]} h4+ $1 {[%emt 0:01:18]} 30. Kxh4 {[%emt 0:00:39]} Rxh2+ {[%emt 0:00:13]} 31. Kg5 {[%emt 0:00:48]} Rh3 {[%emt 0:04:07]} 32. f4 {[%emt 0:00:39]} Rc3 {[%emt 0:00:08]} 33. Bb3 {[%emt 0:00:31]} Kg7 {[%emt 0:00:53]} 34. Rd7 {[%emt 0:00:29]} h6+ {[%emt 0:00:24]} 35. Kg4 {[%emt 0:00:20]} Rf8 {[%emt 0:00:17]} 36. b6 {[%emt 0:00:30]} cxb6 {[%emt 0:01:25]} 37. Rxb7 {[%emt 0:00:05]} Rc6 {[%emt 0:00:49]} 38. Kf5 {[%emt 0:01:06]} Rf6+ {[%emt 0:00:18]} 39. Ke4 {[%emt 0:00:07]} Re8+ {[%emt 0:00:57]} 40. Kf3 {[%emt 0:00:00]} Re1 {[%emt 0:00:37]} 41. Bc4 {[%emt 0:01:15]} Rc1 $19 {[%emt 0:00:42]} 42. Bb3 {[%emt 0:00:13]} Rf1+ {[%emt 0:00:16]} 0-1